[Event "Titled Tuesday Blitz June 6 Early 2023"]
[White "Aarav Dengla"]
[Black "Jeet, Jain"]
[WhiteFideId "45059756"]
[BlackFideId "5073022"]
[WhiteElo "2288"]
[BlackElo "2067"]
[Result "1/2-1/2"]
[Round "8"]
[TimeControl "180+2"]
[Date "2023.06.06"]
[WhiteClock "0:00:08"]
[BlackClock "0:00:04"]
[Board "61"]

1. e4 {[%clk 0:03:00]}  c6 {[%clk 0:02:59]} 2. d4 {[%clk 0:02:56]}  d5 {[%clk 0:02:59]} 3. exd5 {[%clk 0:02:57]}  cxd5 {[%clk 0:02:59]} 4. Bd3 {[%clk 0:02:57]}  Nf6 {[%clk 0:03:00]} 5. h3 {[%clk 0:02:57]}  Nc6 {[%clk 0:02:59]} 6. c3 {[%clk 0:02:57]}  e5 {[%clk 0:02:55]} 7. dxe5 {[%clk 0:02:52]}  Nxe5 {[%clk 0:02:56]} 8. Nf3 {[%clk 0:02:52]}  Nxd3+ {[%clk 0:02:56]} 9. Qxd3 {[%clk 0:02:53]}  Be7 {[%clk 0:02:54]} 10. O-O {[%clk 0:02:52]}  O-O {[%clk 0:02:55]} 11. Bg5 {[%clk 0:02:52]}  h6 {[%clk 0:02:54]} 12. Bxf6 {[%clk 0:02:52]}  Bxf6 {[%clk 0:02:55]} 13. Rd1 {[%clk 0:02:53]}  Be6 {[%clk 0:02:54]} 14. Na3 {[%clk 0:02:52]}  Qb6 {[%clk 0:02:53]} 15. Rab1 {[%clk 0:02:52]}  Rad8 {[%clk 0:02:46]} 16. Nc2 {[%clk 0:02:51]}  Qa5 {[%clk 0:02:41]} 17. Ncd4 {[%clk 0:02:37]}  Rfe8 {[%clk 0:02:35]} 18. Re1 {[%clk 0:02:34]}  Bc8 {[%clk 0:02:25]} 19. a3 {[%clk 0:02:23]}  a6 {[%clk 0:02:21]} 20. Re3 {[%clk 0:02:14]}  Rxe3 {[%clk 0:02:15]} 21. Qxe3 {[%clk 0:02:15]}  Qc7 {[%clk 0:02:10]} 22. Rd1 {[%clk 0:02:12]}  b5 {[%clk 0:02:08]} 23. Ne2 {[%clk 0:02:11]}  Bb7 {[%clk 0:02:07]} 24. Nf4 {[%clk 0:02:06]}  Qc4 {[%clk 0:01:59]} 25. Nh5 {[%clk 0:02:01]}  Qc6 {[%clk 0:01:35]} 26. Nxf6+ {[%clk 0:01:48]}  Qxf6 {[%clk 0:01:36]} 27. Rd4 {[%clk 0:01:48]}  Bc6 {[%clk 0:01:34]} 28. Rf4 {[%clk 0:01:47]}  Qd6 {[%clk 0:01:32]} 29. Nd4 {[%clk 0:01:47]}  Re8 {[%clk 0:01:29]} 30. Qd2 {[%clk 0:01:47]}  Bb7 {[%clk 0:01:27]} 31. Rg4 {[%clk 0:01:41]}  Qf6 {[%clk 0:01:20]} 32. Rf4 {[%clk 0:01:36]}  Qd6 {[%clk 0:01:19]} 33. Rf3 {[%clk 0:01:36]}  Re4 {[%clk 0:01:18]} 34. Nf5 {[%clk 0:01:35]}  Qe5 {[%clk 0:01:17]} 35. Ne3 {[%clk 0:01:27]}  d4 {[%clk 0:01:16]} 36. cxd4 {[%clk 0:01:27]}  Qxd4 {[%clk 0:01:13]} 37. Qc2 {[%clk 0:01:23]}  Re8 {[%clk 0:01:08]} 38. Rg3 {[%clk 0:01:22]}  Rc8 {[%clk 0:01:06]} 39. Qb3 {[%clk 0:01:07]}  Rc1+ {[%clk 0:00:57]} 40. Kh2 {[%clk 0:01:06]}  Qe5 {[%clk 0:00:54]} 41. Ng4 {[%clk 0:00:45]}  Qf4 {[%clk 0:00:54]} 42. Qe3 {[%clk 0:00:36]}  Qxe3 {[%clk 0:00:46]} 43. Rxe3 {[%clk 0:00:37]}  Rc2 {[%clk 0:00:44]} 44. Re8+ {[%clk 0:00:25]}  Kh7 {[%clk 0:00:43]} 45. Re7 {[%clk 0:00:26]}  Bc6 {[%clk 0:00:17]} 46. Rc7 {[%clk 0:00:24]}  Be4 {[%clk 0:00:14]} 47. Rxf7 {[%clk 0:00:22]}  Kg6 {[%clk 0:00:10]} 48. Ra7 {[%clk 0:00:22]}  Rxb2 {[%clk 0:00:09]} 49. Rxa6+ {[%clk 0:00:22]}  Kh7 {[%clk 0:00:08]} 50. Ra7 {[%clk 0:00:21]}  Kg6 {[%clk 0:00:08]} 51. Re7 {[%clk 0:00:21]}  Bb1 {[%clk 0:00:06]} 52. Rb7 {[%clk 0:00:20]}  h5 {[%clk 0:00:06]} 53. Ne3 {[%clk 0:00:18]}  Rxf2 {[%clk 0:00:05]} 54. Rb6+ {[%clk 0:00:17]}  Kh7 {[%clk 0:00:05]} 55. Rxb5 {[%clk 0:00:18]}  Be4 {[%clk 0:00:05]} 56. Rxh5+ {[%clk 0:00:17]}  Kg6 {[%clk 0:00:05]} 57. Rh4 {[%clk 0:00:18]}  Bb7 {[%clk 0:00:05]} 58. Rg4+ {[%clk 0:00:18]}  Kh7 {[%clk 0:00:05]} 59. Rb4 {[%clk 0:00:18]}  Bc6 {[%clk 0:00:05]} 60. Rc4 {[%clk 0:00:18]}  Bb7 {[%clk 0:00:05]} 61. a4 {[%clk 0:00:18]}  Re2 {[%clk 0:00:05]} 62. Rc3 {[%clk 0:00:19]}  Ra2 {[%clk 0:00:05]} 63. Rc4 {[%clk 0:00:13]}  Re2 {[%clk 0:00:04]} 64. Rc7 {[%clk 0:00:13]}  Ba8 {[%clk 0:00:02]} 65. Re7 {[%clk 0:00:13]}  Ra2 {[%clk 0:00:02]} 66. Kg3 {[%clk 0:00:09]}  Rxa4 {[%clk 0:00:01]} 67. Nf5 {[%clk 0:00:10]}  Ra3+ {[%clk 0:00:02]} 68. Kh4 {[%clk 0:00:10]}  Kg6 {[%clk 0:00:03]} 69. Nxg7 {[%clk 0:00:07]}  Bxg2 {[%clk 0:00:03]} 70. Kg4 {[%clk 0:00:07]}  Ra4+ {[%clk 0:00:03]} 71. Kg3 {[%clk 0:00:07]}  Ba8 {[%clk 0:00:04]} 72. Ne6 {[%clk 0:00:07]}  Ra3+ {[%clk 0:00:04]} 73. Kg4 {[%clk 0:00:06]}  Kf6 {[%clk 0:00:05]} 74. Re8 {[%clk 0:00:05]}  Bc6 {[%clk 0:00:05]} 75. Nc7 {[%clk 0:00:03]}  Bxe8 {[%clk 0:00:05]} 76. Nxe8+ {[%clk 0:00:04]}  Ke7 {[%clk 0:00:05]} 77. Ng7 {[%clk 0:00:04]}  Ra4+ {[%clk 0:00:06]} 78. Kf5 {[%clk 0:00:04]}  Ra5+ {[%clk 0:00:06]} 79. Kg4 {[%clk 0:00:04]}  Ra6 {[%clk 0:00:07]} 80. Nf5+ {[%clk 0:00:04]}  Kf6 {[%clk 0:00:08]} 81. Ng3 {[%clk 0:00:05]}  Ra5 {[%clk 0:00:08]} 82. Kf4 {[%clk 0:00:05]}  Ra4+ {[%clk 0:00:08]} 83. Kf3 {[%clk 0:00:04]}  Kg6 {[%clk 0:00:09]} 84. Ne2 {[%clk 0:00:04]}  Kg5 {[%clk 0:00:09]} 85. Kg3 {[%clk 0:00:02]}  Ra3+ {[%clk 0:00:08]} 86. Kg2 {[%clk 0:00:02]}  Kh4 {[%clk 0:00:08]} 87. Kf2 {[%clk 0:00:03]}  Kxh3 {[%clk 0:00:09]} 88. Nf4+ {[%clk 0:00:03]}  Kg4 {[%clk 0:00:09]} 89. Ne2 {[%clk 0:00:04]}  Ra2 {[%clk 0:00:08]} 90. Ke3 {[%clk 0:00:04]}  Ra3+ {[%clk 0:00:08]} 91. Ke4 {[%clk 0:00:05]}  Kg5 {[%clk 0:00:07]} 92. Nd4 {[%clk 0:00:05]}  Kf6 {[%clk 0:00:06]} 93. Nf3 {[%clk 0:00:06]}  Ra4+ {[%clk 0:00:06]} 94. Ke3 {[%clk 0:00:07]}  Kf5 {[%clk 0:00:06]} 95. Nd4+ {[%clk 0:00:07]}  Ke5 {[%clk 0:00:07]} 96. Nf3+ {[%clk 0:00:07]}  Kd5 {[%clk 0:00:08]} 97. Ng5 {[%clk 0:00:07]}  Rg4 {[%clk 0:00:08]} 98. Nf3 {[%clk 0:00:07]}  Rb4 {[%clk 0:00:07]} 99. Ng5 {[%clk 0:00:05]}  Rb8 {[%clk 0:00:07]} 100. Kf4 {[%clk 0:00:06]}  Rf8+ {[%clk 0:00:07]} 101. Ke3 {[%clk 0:00:06]}  Ke5 {[%clk 0:00:08]} 102. Nf3+ {[%clk 0:00:06]}  Kd5 {[%clk 0:00:08]} 103. Nd2 {[%clk 0:00:06]}  Rf5 {[%clk 0:00:08]} 104. Nf3 {[%clk 0:00:05]}  Rh5 {[%clk 0:00:09]} 105. Kf4 {[%clk 0:00:06]}  Rh8 {[%clk 0:00:08]} 106. Ke3 {[%clk 0:00:06]}  Re8+ {[%clk 0:00:09]} 107. Kf4 {[%clk 0:00:07]}  Re2 {[%clk 0:00:09]} 108. Ng5 {[%clk 0:00:06]}  Re7 {[%clk 0:00:07]} 109. Nf3 {[%clk 0:00:07]}  Ra7 {[%clk 0:00:05]} 110. Ke3 {[%clk 0:00:08]}  Ra3+ {[%clk 0:00:05]} 111. Kf4 {[%clk 0:00:09]}  Ra4+ {[%clk 0:00:06]} 112. Ke3 {[%clk 0:00:09]}  Ke6 {[%clk 0:00:07]} 113. Nd4+ {[%clk 0:00:08]}  Kf6 {[%clk 0:00:07]} 114. Nf3 {[%clk 0:00:09]}  Ra3+ {[%clk 0:00:06]} 115. Kf4 {[%clk 0:00:09]}  Ra1 {[%clk 0:00:07]} 116. Ke4 {[%clk 0:00:09]}  Ra7 {[%clk 0:00:08]} 117. Kf4 {[%clk 0:00:09]}  Re7 {[%clk 0:00:08]} 118. Nd4 {[%clk 0:00:08]}  Rd7 {[%clk 0:00:07]} 119. Nf3 {[%clk 0:00:08]}  Rh7 {[%clk 0:00:06]} 120. Ke4 {[%clk 0:00:08]}  Rh5 {[%clk 0:00:06]} 121. Kf4 {[%clk 0:00:09]}  Ra5 {[%clk 0:00:06]} 122. Ke4 {[%clk 0:00:10]}  Rb5 {[%clk 0:00:06]} 123. Ke3 {[%clk 0:00:11]}  Rb4 {[%clk 0:00:06]} 124. Nd4 {[%clk 0:00:11]}  Kg5 {[%clk 0:00:06]} 125. Nf3+ {[%clk 0:00:12]}  Kg4 {[%clk 0:00:06]} 126. Nd4 {[%clk 0:00:12]}  Kg3 {[%clk 0:00:06]} 127. Ne2+ {[%clk 0:00:11]}  Kg4 {[%clk 0:00:05]} 128. Nd4 {[%clk 0:00:11]}  Ra4 {[%clk 0:00:06]} 129. Ke4 {[%clk 0:00:10]}  Ra1 {[%clk 0:00:05]} 130. Nc2 {[%clk 0:00:10]}  Rc1 {[%clk 0:00:05]} 131. Ne3+ {[%clk 0:00:09]}  Kg5 {[%clk 0:00:06]} 132. Kd3 {[%clk 0:00:09]}  Kf4 {[%clk 0:00:05]} 133. Nd5+ {[%clk 0:00:09]}  Kf3 {[%clk 0:00:06]} 134. Nc3 {[%clk 0:00:10]}  Ra1 {[%clk 0:00:05]} 135. Kd2 {[%clk 0:00:10]}  Rh1 {[%clk 0:00:04]} 136. Kd3 {[%clk 0:00:10]}  Rh8 {[%clk 0:00:05]} 137. Nd5 {[%clk 0:00:08]}  Re8 {[%clk 0:00:04]} 1/2-1/2


[Site "https://www.chess.com"]

[Event "Titled Tuesday Blitz June 6 Early 2023"]
[White "Fiorito, Joaquin"]
[Black "LangesNasenhaar"]
[WhiteFideId "180173"]
[WhiteElo "2199"]
[BlackElo "2483"]
[Result "1-0"]
[Round "8"]
[TimeControl "180+2"]
[Date "2023.06.06"]
[WhiteClock "0:00:13"]
[BlackClock "0:00:07"]
[Board "66"]

1. d4 {[%clk 0:03:00]}  g6 {[%clk 0:02:59]} 2. e4 {[%clk 0:03:00]}  Bg7 {[%clk 0:02:59]} 3. Nc3 {[%clk 0:03:00]}  c6 {[%clk 0:03:00]} 4. f4 {[%clk 0:02:58]}  d5 {[%clk 0:02:59]} 5. e5 {[%clk 0:02:57]}  h5 {[%clk 0:02:58]} 6. Nf3 {[%clk 0:02:56]}  Bg4 {[%clk 0:02:57]} 7. Bd3 {[%clk 0:02:50]}  Nh6 {[%clk 0:02:56]} 8. Be3 {[%clk 0:02:50]}  Nf5 {[%clk 0:02:55]} 9. Bf2 {[%clk 0:02:50]}  e6 {[%clk 0:02:50]} 10. O-O {[%clk 0:02:49]}  Bf8 {[%clk 0:02:44]} 11. a4 {[%clk 0:02:48]}  a5 {[%clk 0:02:41]} 12. Ne2 {[%clk 0:02:47]}  Bxf3 {[%clk 0:02:39]} 13. gxf3 {[%clk 0:02:48]}  h4 {[%clk 0:02:32]} 14. c4 {[%clk 0:02:42]}  dxc4 {[%clk 0:02:10]} 15. Bxc4 {[%clk 0:02:41]}  Nd7 {[%clk 0:02:10]} 16. Nc3 {[%clk 0:02:41]}  Nb6 {[%clk 0:02:08]} 17. Bb3 {[%clk 0:02:36]}  Nd5 {[%clk 0:02:03]} 18. Qd2 {[%clk 0:02:29]}  Be7 {[%clk 0:01:59]} 19. Ne4 {[%clk 0:02:23]}  Kf8 {[%clk 0:01:57]} 20. Kh1 {[%clk 0:02:11]}  Kg7 {[%clk 0:01:56]} 21. Rg1 {[%clk 0:02:11]}  Qb6 {[%clk 0:01:51]} 22. Bc2 {[%clk 0:01:57]}  Qb4 {[%clk 0:01:49]} 23. Nc3 {[%clk 0:01:50]}  Rad8 {[%clk 0:01:34]} 24. Bxf5 {[%clk 0:01:44]}  exf5 {[%clk 0:01:32]} 25. Rad1 {[%clk 0:01:38]}  Nc7 {[%clk 0:01:26]} 26. Qc2 {[%clk 0:01:37]}  Kf8 {[%clk 0:01:22]} 27. Na2 {[%clk 0:01:12]}  Qb6 {[%clk 0:01:09]} 28. d5 {[%clk 0:01:12]}  Qa6 {[%clk 0:01:00]} 29. d6 {[%clk 0:01:12]}  Nd5 {[%clk 0:00:55]} 30. Rxd5 {[%clk 0:00:45]}  cxd5 {[%clk 0:00:49]} 31. Qc7 {[%clk 0:00:28]}  Re8 {[%clk 0:00:37]} 32. dxe7+ {[%clk 0:00:26]}  Kg8 {[%clk 0:00:31]} 33. Qd6 {[%clk 0:00:25]}  Qe2 {[%clk 0:00:23]} 34. Rxg6+ {[%clk 0:00:24]}  Kh7 {[%clk 0:00:23]} 35. Rh6+ {[%clk 0:00:24]}  Kg8 {[%clk 0:00:23]} 36. Rxh8+ {[%clk 0:00:14]}  Kxh8 {[%clk 0:00:23]} 37. Qf6+ {[%clk 0:00:15]}  Kg8 {[%clk 0:00:20]} 38. Qg5+ {[%clk 0:00:14]}  Kh8 {[%clk 0:00:20]} 39. Qxh4+ {[%clk 0:00:13]}  Kg8 {[%clk 0:00:20]} 40. Qg5+ {[%clk 0:00:13]}  Kh8 {[%clk 0:00:20]} 41. Kg2 {[%clk 0:00:13]}  Qa6 {[%clk 0:00:16]} 42. Nc3 {[%clk 0:00:13]}  Qe6 {[%clk 0:00:14]} 43. Qf6+ {[%clk 0:00:12]}  Kh7 {[%clk 0:00:14]} 44. Bh4 {[%clk 0:00:12]}  Rg8+ {[%clk 0:00:10]} 45. Kf2 {[%clk 0:00:11]}  Qd7 {[%clk 0:00:10]} 46. Qxf7+ {[%clk 0:00:10]}  Rg7 {[%clk 0:00:09]} 47. Qh5+ {[%clk 0:00:10]}  Kg8 {[%clk 0:00:09]} 48. e8=Q+ {[%clk 0:00:11]}  Qxe8 {[%clk 0:00:08]} 49. Qxe8+ {[%clk 0:00:12]}  Kh7 {[%clk 0:00:08]} 50. Bf6 {[%clk 0:00:12]}  Rg8 {[%clk 0:00:07]} 51. Qh5# {[%clk 0:00:13]} 1-0


[Site "https://www.chess.com"]

[Event "Titled Tuesday Blitz June 6 Early 2023"]
[White "Lee, Qing Aun"]
[Black "Zaitsev, Alexander"]
[WhiteFideId "5804167"]
[BlackFideId "4164490"]
[WhiteElo "2179"]
[BlackElo "2373"]
[Result "1-0"]
[Round "8"]
[TimeControl "180+2"]
[Date "2023.06.06"]
[WhiteClock "0:00:55"]
[BlackClock "0:00:04"]
[Board "67"]

1. d4 {[%clk 0:03:00]}  Nf6 {[%clk 0:02:59]} 2. Nc3 {[%clk 0:03:00]}  d5 {[%clk 0:02:59]} 3. Bf4 {[%clk 0:03:00]}  a6 {[%clk 0:02:59]} 4. e3 {[%clk 0:03:00]}  e6 {[%clk 0:02:59]} 5. g4 {[%clk 0:03:00]}  Bb4 {[%clk 0:02:56]} 6. Bg2 {[%clk 0:02:59]}  h6 {[%clk 0:02:46]} 7. h3 {[%clk 0:02:55]}  c5 {[%clk 0:02:30]} 8. Ne2 {[%clk 0:02:55]}  Nc6 {[%clk 0:02:27]} 9. O-O {[%clk 0:02:54]}  cxd4 {[%clk 0:02:19]} 10. exd4 {[%clk 0:02:54]}  O-O {[%clk 0:02:19]} 11. Ng3 {[%clk 0:02:53]}  Bd6 {[%clk 0:02:13]} 12. Nce2 {[%clk 0:02:51]}  Bxf4 {[%clk 0:02:08]} 13. Nxf4 {[%clk 0:02:51]}  Qb6 {[%clk 0:02:09]} 14. c3 {[%clk 0:02:43]}  Qxb2 {[%clk 0:02:05]} 15. Qf3 {[%clk 0:02:39]}  Qa3 {[%clk 0:01:41]} 16. Nfh5 {[%clk 0:02:07]}  Nxh5 {[%clk 0:01:29]} 17. Nxh5 {[%clk 0:02:08]}  Bd7 {[%clk 0:01:22]} 18. Qg3 {[%clk 0:02:06]}  Qe7 {[%clk 0:01:08]} 19. f4 {[%clk 0:02:04]}  f5 {[%clk 0:00:50]} 20. gxf5 {[%clk 0:01:43]}  Rxf5 {[%clk 0:00:49]} 21. Bf3 {[%clk 0:01:43]}  Be8 {[%clk 0:00:46]} 22. Bg4 {[%clk 0:01:31]}  Rxh5 {[%clk 0:00:23]} 23. Rae1 {[%clk 0:01:25]}  Nd8 {[%clk 0:00:08]} 24. Bxh5 {[%clk 0:01:23]}  Bxh5 {[%clk 0:00:09]} 25. f5 {[%clk 0:01:23]}  Qg5 {[%clk 0:00:09]} 26. Qxg5 {[%clk 0:01:20]}  hxg5 {[%clk 0:00:10]} 27. fxe6 {[%clk 0:01:20]}  Nc6 {[%clk 0:00:08]} 28. Rf5 {[%clk 0:01:20]}  Bg6 {[%clk 0:00:07]} 29. Rxd5 {[%clk 0:01:19]}  Re8 {[%clk 0:00:06]} 30. Rxg5 {[%clk 0:01:19]}  Bd3 {[%clk 0:00:06]} 31. d5 {[%clk 0:01:18]}  Nd8 {[%clk 0:00:05]} 32. e7 {[%clk 0:00:59]}  Nf7 {[%clk 0:00:04]} 33. d6 {[%clk 0:00:59]}  Bb5 {[%clk 0:00:03]} 34. Rd5 {[%clk 0:00:59]}  Bd7 {[%clk 0:00:03]} 35. Red1 {[%clk 0:00:57]}  g6 {[%clk 0:00:01]} 36. Rc5 {[%clk 0:00:57]}  Kg7 {[%clk 0:00:02]} 37. Rc7 {[%clk 0:00:57]}  Ne5 {[%clk 0:00:02]} 38. Rd5 {[%clk 0:00:55]}  Kf6 {[%clk 0:00:03]} 39. Rxe5 {[%clk 0:00:55]}  Kxe5 {[%clk 0:00:03]} 40. Rxd7 {[%clk 0:00:55]}  Ke6 {[%clk 0:00:04]} 41. Rd8 {[%clk 0:00:55]} 1-0


[Site "https://www.chess.com"]

[Event "Titled Tuesday Blitz June 6 Early 2023"]
[White "KorolDimitriy75"]
[Black "Perez, Maximiliano"]
[BlackFideId "117234"]
[WhiteElo "2467"]
[BlackElo "2334"]
[Result "0-1"]
[Round "8"]
[TimeControl "180+2"]
[Date "2023.06.06"]
[WhiteClock "0:00:03"]
[BlackClock "0:01:06"]
[Board "70"]

1. d4 {[%clk 0:03:00]}  Nf6 {[%clk 0:02:59]} 2. c4 {[%clk 0:03:01]}  e6 {[%clk 0:03:00]} 3. Nc3 {[%clk 0:03:01]}  Bb4 {[%clk 0:03:00]} 4. Qc2 {[%clk 0:03:01]}  O-O {[%clk 0:03:00]} 5. e4 {[%clk 0:03:01]}  Bxc3+ {[%clk 0:02:59]} 6. bxc3 {[%clk 0:03:01]}  d6 {[%clk 0:02:59]} 7. e5 {[%clk 0:02:58]}  dxe5 {[%clk 0:02:58]} 8. dxe5 {[%clk 0:02:58]}  Ng4 {[%clk 0:02:43]} 9. Nf3 {[%clk 0:02:49]}  Nc6 {[%clk 0:02:43]} 10. Ba3 {[%clk 0:02:48]}  Re8 {[%clk 0:02:35]} 11. Rd1 {[%clk 0:02:37]}  Bd7 {[%clk 0:02:35]} 12. Qe4 {[%clk 0:02:32]}  f5 {[%clk 0:02:33]} 13. Qf4 {[%clk 0:01:26]}  Qc8 {[%clk 0:02:28]} 14. Be2 {[%clk 0:01:15]}  b6 {[%clk 0:02:20]} 15. h3 {[%clk 0:01:06]}  Nh6 {[%clk 0:02:20]} 16. O-O {[%clk 0:00:48]}  Rd8 {[%clk 0:02:12]} 17. Rd2 {[%clk 0:00:37]}  Be8 {[%clk 0:02:06]} 18. Nd4 {[%clk 0:00:28]}  Nf7 {[%clk 0:01:45]} 19. Rfd1 {[%clk 0:00:15]}  Ncxe5 {[%clk 0:01:38]} 20. c5 {[%clk 0:00:08]}  Ba4 {[%clk 0:01:35]} 21. Re1 {[%clk 0:00:07]}  Ng6 {[%clk 0:01:33]} 22. Qg3 {[%clk 0:00:06]}  e5 {[%clk 0:01:33]} 23. Nf3 {[%clk 0:00:04]}  Rxd2 {[%clk 0:01:33]} 24. Nxd2 {[%clk 0:00:05]}  Qd7 {[%clk 0:01:29]} 25. Nf3 {[%clk 0:00:04]}  Re8 {[%clk 0:01:23]} 26. Bc4 {[%clk 0:00:04]}  f4 {[%clk 0:01:10]} 27. Qh2 {[%clk 0:00:03]}  Kh8 {[%clk 0:01:06]} 0-1


[Site "https://www.chess.com"]

[Event "Titled Tuesday Blitz June 6 Early 2023"]
[White "Aldokhin, Ivan"]
[Black "Ramirez Vido, Robert Yorisan"]
[WhiteFideId "24115720"]
[BlackFideId "3513823"]
[WhiteElo "2322"]
[BlackElo "2466"]
[Result "1-0"]
[Round "8"]
[TimeControl "180+2"]
[Date "2023.06.06"]
[WhiteClock "0:00:02"]
[BlackClock "0:00:02"]
[Board "71"]

1. e4 {[%clk 0:02:58]}  d6 {[%clk 0:02:59]} 2. d4 {[%clk 0:02:58]}  Nf6 {[%clk 0:02:59]} 3. Nc3 {[%clk 0:02:58]}  g6 {[%clk 0:02:54]} 4. Bg5 {[%clk 0:02:26]}  Bg7 {[%clk 0:02:51]} 5. Qd2 {[%clk 0:02:26]}  c6 {[%clk 0:02:38]} 6. f4 {[%clk 0:02:25]}  O-O {[%clk 0:02:37]} 7. Bd3 {[%clk 0:02:24]}  b5 {[%clk 0:02:25]} 8. Nf3 {[%clk 0:02:24]}  Qb6 {[%clk 0:02:20]} 9. e5 {[%clk 0:02:18]}  b4 {[%clk 0:02:14]} 10. Ne2 {[%clk 0:02:06]}  Nd5 {[%clk 0:02:05]} 11. O-O {[%clk 0:01:48]}  Bg4 {[%clk 0:01:57]} 12. Kh1 {[%clk 0:01:42]}  f6 {[%clk 0:01:53]} 13. exf6 {[%clk 0:01:33]}  exf6 {[%clk 0:01:53]} 14. Bh4 {[%clk 0:01:33]}  f5 {[%clk 0:01:42]} 15. Ng5 {[%clk 0:01:32]}  Bxe2 {[%clk 0:01:36]} 16. Qxe2 {[%clk 0:01:30]}  Bxd4 {[%clk 0:01:10]} 17. Bc4 {[%clk 0:01:15]}  Bf6 {[%clk 0:00:54]} 18. Qe6+ {[%clk 0:00:57]}  Kg7 {[%clk 0:00:51]} 19. Bxd5 {[%clk 0:00:57]}  cxd5 {[%clk 0:00:51]} 20. Qxd5 {[%clk 0:00:56]}  Bxg5 {[%clk 0:00:48]} 21. fxg5 {[%clk 0:00:44]}  Nc6 {[%clk 0:00:35]} 22. Bf2 {[%clk 0:00:35]}  Qc7 {[%clk 0:00:32]} 23. c3 {[%clk 0:00:22]}  bxc3 {[%clk 0:00:31]} 24. Rac1 {[%clk 0:00:21]}  Ne5 {[%clk 0:00:28]} 25. Rxc3 {[%clk 0:00:20]}  Qe7 {[%clk 0:00:23]} 26. Rfc1 {[%clk 0:00:19]}  Rad8 {[%clk 0:00:19]} 27. Bd4 {[%clk 0:00:16]}  Rd7 {[%clk 0:00:17]} 28. h3 {[%clk 0:00:14]}  Rfd8 {[%clk 0:00:17]} 29. Re1 {[%clk 0:00:12]}  Qxg5 {[%clk 0:00:17]} 30. Rxe5 {[%clk 0:00:07]}  dxe5 {[%clk 0:00:18]} 31. Qxe5+ {[%clk 0:00:08]}  Kf7 {[%clk 0:00:02]} 32. Qg7+ {[%clk 0:00:07]}  Ke6 {[%clk 0:00:02]} 33. Qe5+ {[%clk 0:00:03]}  Kf7 {[%clk 0:00:02]} 34. Rc4 {[%clk 0:00:01]}  Rxd4 {[%clk 0:00:01]} 35. Rxd4 {[%clk 0:00:01]}  Rxd4 {[%clk 0:00:01]} 36. Qxd4 {[%clk 0:00:02]}  Qc1+ {[%clk 0:00:01]} 37. Kh2 {[%clk 0:00:02]}  Qc7+ {[%clk 0:00:01]} 38. Kh1 {[%clk 0:00:02]}  Qc1+ {[%clk 0:00:02]} 39. Kh2 {[%clk 0:00:03]}  Qc7+ {[%clk 0:00:02]} 40. Kg1 {[%clk 0:00:03]}  Qc1+ {[%clk 0:00:02]} 41. Kf2 {[%clk 0:00:04]}  Qc2+ {[%clk 0:00:03]} 42. Kf3 {[%clk 0:00:04]}  Qc7 {[%clk 0:00:04]} 43. Kf2 {[%clk 0:00:04]}  Ke7 {[%clk 0:00:04]} 44. Qe3+ {[%clk 0:00:04]}  Kd6 {[%clk 0:00:04]} 45. Qc3 {[%clk 0:00:04]}  Qb6+ {[%clk 0:00:04]} 46. Kf3 {[%clk 0:00:04]}  Ke6 {[%clk 0:00:04]} 47. Kg3 {[%clk 0:00:03]}  Kd6 {[%clk 0:00:04]} 48. Qd3+ {[%clk 0:00:03]}  Ke6 {[%clk 0:00:04]} 49. Qc4+ {[%clk 0:00:03]}  Kf6 {[%clk 0:00:03]} 50. Qc3+ {[%clk 0:00:03]}  Ke6 {[%clk 0:00:03]} 51. h4 {[%clk 0:00:03]}  Kd6 {[%clk 0:00:03]} 52. Qd2+ {[%clk 0:00:03]}  Ke7 {[%clk 0:00:02]} 53. Qe2+ {[%clk 0:00:03]}  Kd7 {[%clk 0:00:03]} 54. Qd2+ {[%clk 0:00:03]}  Ke7 {[%clk 0:00:02]} 55. b3 {[%clk 0:00:03]}  Qc7+ {[%clk 0:00:02]} 56. Qf4 {[%clk 0:00:02]}  Qc3+ {[%clk 0:00:02]} 57. Kh2 {[%clk 0:00:03]}  Qc2 {[%clk 0:00:01]} 58. Qe5+ {[%clk 0:00:03]}  Kf7 {[%clk 0:00:02]} 59. b4 {[%clk 0:00:01]}  Qxa2 {[%clk 0:00:01]} 60. Qc7+ {[%clk 0:00:01]}  Kf6 {[%clk 0:00:01]} 61. Qc6+ {[%clk 0:00:02]}  Kf7 {[%clk 0:00:02]} 62. Qd5+ {[%clk 0:00:02]}  Kf6 {[%clk 0:00:02]} 63. Qxa2 {[%clk 0:00:02]} 1-0


[Site "https://www.chess.com"]

[Event "Titled Tuesday Blitz June 6 Early 2023"]
[White "kuanysh1981"]
[Black "Martic, Ivan"]
[BlackFideId "929301"]
[WhiteElo "2459"]
[BlackElo "2346"]
[Result "0-1"]
[Round "8"]
[TimeControl "180+2"]
[Date "2023.06.06"]
[WhiteClock "0:00:24"]
[BlackClock "0:00:43"]
[Board "72"]

1. e4 {[%clk 0:02:57]}  c5 {[%clk 0:02:51]} 2. Nf3 {[%clk 0:02:56]}  e6 {[%clk 0:02:51]} 3. b3 {[%clk 0:02:54]}  a6 {[%clk 0:02:50]} 4. Bb2 {[%clk 0:02:53]}  Nc6 {[%clk 0:02:49]} 5. Be2 {[%clk 0:02:45]}  Nf6 {[%clk 0:02:34]} 6. e5 {[%clk 0:02:45]}  Ng4 {[%clk 0:02:32]} 7. h3 {[%clk 0:02:43]}  Nh6 {[%clk 0:02:31]} 8. O-O {[%clk 0:02:41]}  Qc7 {[%clk 0:02:25]} 9. Re1 {[%clk 0:02:39]}  Nf5 {[%clk 0:02:11]} 10. Bf1 {[%clk 0:02:38]}  b5 {[%clk 0:02:10]} 11. Nc3 {[%clk 0:02:25]}  Bb7 {[%clk 0:02:02]} 12. Ne4 {[%clk 0:02:25]}  Be7 {[%clk 0:02:00]} 13. a4 {[%clk 0:02:14]}  b4 {[%clk 0:01:57]} 14. d3 {[%clk 0:02:06]}  Ncd4 {[%clk 0:01:53]} 15. Nxd4 {[%clk 0:02:00]}  Nxd4 {[%clk 0:01:51]} 16. f4 {[%clk 0:01:53]}  O-O {[%clk 0:01:45]} 17. c3 {[%clk 0:01:41]}  bxc3 {[%clk 0:01:42]} 18. Bxc3 {[%clk 0:01:42]}  f5 {[%clk 0:01:38]} 19. exf6 {[%clk 0:01:37]}  Bxf6 {[%clk 0:01:33]} 20. Nxf6+ {[%clk 0:01:37]}  Rxf6 {[%clk 0:01:34]} 21. Bxd4 {[%clk 0:01:32]}  cxd4 {[%clk 0:01:32]} 22. g3 {[%clk 0:01:30]}  Rg6 {[%clk 0:01:26]} 23. Kh2 {[%clk 0:01:27]}  Qc6 {[%clk 0:01:25]} 24. Re4 {[%clk 0:01:25]}  Qd6 {[%clk 0:01:06]} 25. Re5 {[%clk 0:01:24]}  Rc8 {[%clk 0:01:05]} 26. Rc1 {[%clk 0:01:17]}  Rc3 {[%clk 0:01:04]} 27. Rxc3 {[%clk 0:01:09]}  dxc3 {[%clk 0:01:05]} 28. d4 {[%clk 0:01:09]}  Qc6 {[%clk 0:00:52]} 29. d5 {[%clk 0:01:03]}  Qc5 {[%clk 0:00:53]} 30. Bg2 {[%clk 0:00:55]}  c2 {[%clk 0:00:46]} 31. Qc1 {[%clk 0:00:47]}  Qf2 {[%clk 0:00:46]} 32. g4 {[%clk 0:00:24]}  Bxd5 {[%clk 0:00:43]} 0-1


[Site "https://www.chess.com"]